[Event "*** SCC Grand Prix: Titled Tuesday Blitz"]
[Site "Chess.com"]
[Date "2020.10.06"]
[Round "4"]
[White "Sibelephant"]
[Black "alexrustemov"]
[Result "1/2-1/2"]
[WhiteElo "3091"]
[BlackElo "2744"]
[TimeControl "180+1"]
[EndTime "10:40:20 PDT"]
[Termination "Game drawn by repetition"]

1. Nf3 {[%clk 0:03:00.1]} 1... Nf6 {[%clk 0:02:59.4]} 2. b3 {[%clk 0:02:59.9]}
2... d5 {[%clk 0:02:58.8]} 3. Bb2 {[%clk 0:03:00.2]} 3... Bf5 {[%clk 0:02:57]}
4. e3 {[%clk 0:02:59]} 4... e6 {[%clk 0:02:56.4]} 5. d3 {[%clk 0:02:55]} 5... h6
{[%clk 0:02:55.8]} 6. Nbd2 {[%clk 0:02:55]} 6... Be7 {[%clk 0:02:54.9]} 7. h3
{[%clk 0:02:51.7]} 7... c5 {[%clk 0:02:48]} 8. Ne5 {[%clk 0:02:47.1]} 8... Bh7
{[%clk 0:02:42.1]} 9. Qe2 {[%clk 0:02:40.5]} 9... a5 {[%clk 0:02:35.7]} 10. a4
{[%clk 0:02:38.6]} 10... Nc6 {[%clk 0:02:35.5]} 11. Nxc6 {[%clk 0:02:38]} 11...
bxc6 {[%clk 0:02:36.4]} 12. g3 {[%clk 0:02:33.5]} 12... O-O {[%clk 0:02:34]} 13.
Bg2 {[%clk 0:02:33.6]} 13... Nd7 {[%clk 0:02:28.3]} 14. O-O {[%clk 0:02:33.2]}
14... Bf6 {[%clk 0:02:26]} 15. Bxf6 {[%clk 0:02:33]} 15... Nxf6 {[%clk
0:02:26.8]} 16. e4 {[%clk 0:02:28.7]} 16... Qb6 {[%clk 0:02:19.4]} 17. Kh2
{[%clk 0:02:26.7]} 17... Rfd8 {[%clk 0:02:17.9]} 18. Rfe1 {[%clk 0:02:08]} 18...
Qb4 {[%clk 0:02:17.2]} 19. Rac1 {[%clk 0:01:52.7]} 19... Qc3 {[%clk 0:02:11.1]}
20. Qe3 {[%clk 0:01:44]} 20... Rd7 {[%clk 0:02:03.1]} 21. Nf3 {[%clk 0:01:27.8]}
21... dxe4 {[%clk 0:01:59]} 22. dxe4 {[%clk 0:01:27]} 22... Qxe3 {[%clk
0:01:59.1]} 23. Rxe3 {[%clk 0:01:27.6]} 23... Bxe4 {[%clk 0:01:45.5]} 24. Ne5
{[%clk 0:01:27.2]} 24... Rd5 {[%clk 0:01:45.6]} 25. Bxe4 {[%clk 0:01:23.6]}
25... Rxe5 {[%clk 0:01:45.3]} 26. Bh7+ {[%clk 0:01:23.6]} 26... Kxh7 {[%clk
0:01:40.1]} 27. Rxe5 {[%clk 0:01:23.7]} 27... Nd7 {[%clk 0:01:28.8]} 28. Re4
{[%clk 0:01:12.3]} 28... Kg8 {[%clk 0:01:25.8]} 29. Rd1 {[%clk 0:01:12.1]} 29...
Ra7 {[%clk 0:01:25.8]} 30. Kg2 {[%clk 0:00:57.2]} 30... Kf8 {[%clk 0:01:26.2]}
31. f4 {[%clk 0:00:57.6]} 31... Ke7 {[%clk 0:01:25.6]} 32. Kf3 {[%clk
0:00:57.6]} 32... h5 {[%clk 0:01:24.9]} 33. g4 {[%clk 0:00:44.3]} 33... hxg4+
{[%clk 0:01:25.8]} 34. hxg4 {[%clk 0:00:45]} 34... g6 {[%clk 0:01:26.2]} 35. Rh1
{[%clk 0:00:44.9]} 35... Nb6 {[%clk 0:01:23.2]} 36. Rh8 {[%clk 0:00:43]} 36...
Kd6 {[%clk 0:01:14.4]} 37. Rd8+ {[%clk 0:00:38.9]} 37... Ke7 {[%clk 0:01:12.2]}
38. Rb8 {[%clk 0:00:37.8]} 38... Nd7 {[%clk 0:01:09.1]} 39. Rc8 {[%clk
0:00:37.8]} 39... Kd6 {[%clk 0:01:08.3]} 40. Re2 {[%clk 0:00:37.9]} 40... c4
{[%clk 0:00:47.4]} 41. Re3 {[%clk 0:00:31.8]} 41... Kc5 {[%clk 0:00:41.5]} 42.
Re4 {[%clk 0:00:25.8]} 42... Nb6 {[%clk 0:00:39.9]} 43. Re5+ {[%clk 0:00:24.8]}
43... Kd6 {[%clk 0:00:36.7]} 44. Rd8+ {[%clk 0:00:17.9]} 44... Ke7 {[%clk
0:00:35.3]} 45. Rh8 {[%clk 0:00:11.5]} 45... cxb3 {[%clk 0:00:33.2]} 46. cxb3
{[%clk 0:00:12.4]} 46... Nd5 {[%clk 0:00:33.6]} 47. Rh2 {[%clk 0:00:05.1]} 47...
Rb7 {[%clk 0:00:33.2]} 48. Rb2 {[%clk 0:00:05.6]} 48... Kd6 {[%clk 0:00:32.7]}
49. Re4 {[%clk 0:00:05.4]} 49... f5 {[%clk 0:00:32.1]} 50. gxf5 {[%clk
0:00:05.3]} 50... gxf5 {[%clk 0:00:33]} 51. Rd4 {[%clk 0:00:05.4]} 51... Rh7
{[%clk 0:00:32.8]} 52. Kg3 {[%clk 0:00:03.3]} 52... Rg7+ {[%clk 0:00:32.7]} 53.
Kf3 {[%clk 0:00:03.4]} 53... Rh7 {[%clk 0:00:33.1]} 54. Rc4 {[%clk 0:00:03.4]}
54... Rh3+ {[%clk 0:00:32.3]} 55. Kg2 {[%clk 0:00:03.6]} 55... Rh4 {[%clk
0:00:32.7]} 56. Kg3 {[%clk 0:00:03.6]} 56... Rg4+ {[%clk 0:00:32.6]} 57. Kf3
{[%clk 0:00:04.2]} 57... Rh4 {[%clk 0:00:32.6]} 58. Rbc2 {[%clk 0:00:04.8]}
58... Nb4 {[%clk 0:00:32.3]} 59. R2c3 {[%clk 0:00:03.9]} 59... Rh3+ {[%clk
0:00:31.8]} 60. Kf2 {[%clk 0:00:03.9]} 60... Rh1 {[%clk 0:00:32.3]} 61. Kg2
{[%clk 0:00:02.6]} 61... Rd1 {[%clk 0:00:29.9]} 62. Rc5 {[%clk 0:00:03]} 62...
Nd5 {[%clk 0:00:28.8]} 63. Rxc6+ {[%clk 0:00:03]} 63... Kd7 {[%clk 0:00:29.1]}
64. R3c4 {[%clk 0:00:02.8]} 64... Ne3+ {[%clk 0:00:28.6]} 65. Kf2 {[%clk
0:00:02.9]} 65... Nxc4 {[%clk 0:00:29.3]} 66. Rxc4 {[%clk 0:00:03.6]} 66... Rb1
{[%clk 0:00:29.4]} 67. Rc5 {[%clk 0:00:03.2]} 67... Rxb3 {[%clk 0:00:28.5]} 68.
Rxa5 {[%clk 0:00:03.8]} 68... Ra3 {[%clk 0:00:27.7]} 69. Ra6 {[%clk 0:00:03.6]}
69... Ke7 {[%clk 0:00:26.2]} 70. a5 {[%clk 0:00:04.1]} 70... Kf6 {[%clk
0:00:24.7]} 71. Ra8 {[%clk 0:00:04]} 71... Ra4 {[%clk 0:00:23.9]} 72. Kg3 {[%clk
0:00:03.9]} 72... Ra3+ {[%clk 0:00:24.6]} 73. Kf2 {[%clk 0:00:04.2]} 73... Ra4
{[%clk 0:00:25.4]} 74. Kf3 {[%clk 0:00:03.2]} 74... Ra3+ {[%clk 0:00:26.3]} 75.
Kf2 {[%clk 0:00:03.6]} 1/2-1/2

[Event "*** SCC Grand Prix: Titled Tuesday Blitz"]
[Site "Chess.com"]
[Date "2020.10.06"]
[Round "4"]
[White "AnonymusDonkey"]
[Black "Morshynska"]
[Result "0-1"]
[WhiteElo "2400"]
[BlackElo "2219"]
[TimeControl "180+1"]
[EndTime "10:40:22 PDT"]
[Termination "Morshynska won on time"]

1. e4 {[%clk 0:03:00.9]} 1... e5 {[%clk 0:02:59.2]} 2. Nf3 {[%clk 0:03:01]} 2...
Nc6 {[%clk 0:02:59.3]} 3. Bc4 {[%clk 0:03:01.5]} 3... Nf6 {[%clk 0:02:58.5]} 4.
d3 {[%clk 0:03:01.1]} 4... Be7 {[%clk 0:02:57.9]} 5. O-O {[%clk 0:03:01]} 5...
O-O {[%clk 0:02:58.3]} 6. Re1 {[%clk 0:03:01.2]} 6... d6 {[%clk 0:02:57.4]} 7.
a4 {[%clk 0:03:01.2]} 7... Kh8 {[%clk 0:02:48.9]} 8. h3 {[%clk 0:03:00.5]} 8...
Ng8 {[%clk 0:02:46.8]} 9. Nc3 {[%clk 0:03:00.8]} 9... f5 {[%clk 0:02:43.4]} 10.
Nd5 {[%clk 0:03:01.2]} 10... f4 {[%clk 0:02:29.2]} 11. d4 {[%clk 0:02:55.2]}
11... Bf6 {[%clk 0:02:23.5]} 12. c3 {[%clk 0:02:49.8]} 12... Bd7 {[%clk
0:02:15.4]} 13. b4 {[%clk 0:02:16.8]} 13... Nce7 {[%clk 0:02:08]} 14. Nxf6
{[%clk 0:02:07]} 14... gxf6 {[%clk 0:02:05.1]} 15. b5 {[%clk 0:01:39.3]} 15...
Qe8 {[%clk 0:01:53.6]} 16. Kh2 {[%clk 0:01:32.3]} 16... Rd8 {[%clk 0:01:49.2]}
17. a5 {[%clk 0:01:28.2]} 17... Bxb5 {[%clk 0:01:39.2]} 18. Be6 {[%clk
0:01:18.4]} 18... Ng6 {[%clk 0:01:15.1]} 19. d5 {[%clk 0:01:14.9]} 19... Bd7
{[%clk 0:01:00.7]} 20. Bxd7 {[%clk 0:01:13.6]} 20... Qxd7 {[%clk 0:01:00.7]} 21.
Rb1 {[%clk 0:01:12.4]} 21... b6 {[%clk 0:00:58.8]} 22. c4 {[%clk 0:01:07.3]}
22... h6 {[%clk 0:00:54.2]} 23. Qb3 {[%clk 0:01:04.6]} 23... f5 {[%clk 0:00:49]}
24. Qd3 {[%clk 0:00:45.7]} 24... fxe4 {[%clk 0:00:45.5]} 25. Qxe4 {[%clk
0:00:46.6]} 25... Qf5 {[%clk 0:00:44.3]} 26. Qxf5 {[%clk 0:00:41.7]} 26... Rxf5
{[%clk 0:00:45.2]} 27. Nd2 {[%clk 0:00:42]} 27... Rff8 {[%clk 0:00:42]} 28. f3
{[%clk 0:00:41.7]} 28... Nf6 {[%clk 0:00:41.2]} 29. Ba3 {[%clk 0:00:36.7]} 29...
Kg7 {[%clk 0:00:39.9]} 30. Bb4 {[%clk 0:00:33.2]} 30... Rb8 {[%clk 0:00:37.5]}
31. Bc3 {[%clk 0:00:30.2]} 31... Kf7 {[%clk 0:00:36]} 32. Rb3 {[%clk 0:00:26.1]}
32... Ne7 {[%clk 0:00:35.5]} 33. axb6 {[%clk 0:00:19.7]} 33... axb6 {[%clk
0:00:35.5]} 34. Ra3 {[%clk 0:00:19.7]} 34... Ra8 {[%clk 0:00:35.7]} 35. Rea1
{[%clk 0:00:19.1]} 35... Rxa3 {[%clk 0:00:34.9]} 36. Rxa3 {[%clk 0:00:20]} 36...
Rc8 {[%clk 0:00:21.3]} 37. Ra7 {[%clk 0:00:17.7]} 37... b5 {[%clk 0:00:17.2]}
38. Ba5 {[%clk 0:00:12.9]} 38... bxc4 {[%clk 0:00:15.7]} 39. Nxc4 {[%clk
0:00:13]} 39... Kg6 {[%clk 0:00:13.8]} 40. Rxc7 {[%clk 0:00:09.3]} 40... Rxc7
{[%clk 0:00:13.1]} 41. Bxc7 {[%clk 0:00:10.2]} 41... Nexd5 {[%clk 0:00:11.7]}
42. Bxd6 {[%clk 0:00:05.4]} 42... Nd7 {[%clk 0:00:10.4]} 43. Nxe5+ {[%clk
0:00:05]} 43... Nxe5 {[%clk 0:00:10.1]} 44. Bxe5 {[%clk 0:00:05.9]} 44... Kf5
{[%clk 0:00:11]} 45. Bg7 {[%clk 0:00:05.2]} 45... h5 {[%clk 0:00:10.9]} 46. Bf8
{[%clk 0:00:05.1]} 46... Ne3 {[%clk 0:00:11]} 47. Bd6 {[%clk 0:00:04.1]} 47...
Nc2 {[%clk 0:00:10.3]} 48. Kg1 {[%clk 0:00:04.1]} 48... Nd4 {[%clk 0:00:09.2]}
49. Kf2 {[%clk 0:00:03.8]} 49... Nb5 {[%clk 0:00:09.2]} 50. Bb8 {[%clk 0:00:04]}
50... Nd4 {[%clk 0:00:08.7]} 51. Ke1 {[%clk 0:00:04]} 51... Kg5 {[%clk
0:00:08.5]} 52. Kd2 {[%clk 0:00:04.3]} 52... Nf5 {[%clk 0:00:07.4]} 53. Kd3
{[%clk 0:00:04.3]} 53... Nh4 {[%clk 0:00:06.8]} 54. Ke4 {[%clk 0:00:04]} 54...
Nxg2 {[%clk 0:00:07]} 55. Kd4 {[%clk 0:00:04.2]} 55... Kh4 {[%clk 0:00:07]} 56.
Ke4 {[%clk 0:00:04.2]} 56... Kg3 {[%clk 0:00:07.2]} 57. h4 {[%clk 0:00:03.5]}
57... Kxh4 {[%clk 0:00:07]} 58. Bxf4 {[%clk 0:00:03.3]} 58... Kh3 {[%clk
0:00:07.1]} 59. Be5 {[%clk 0:00:03.2]} 59... h4 {[%clk 0:00:07.4]} 60. Bd6
{[%clk 0:00:03.3]} 60... Ne1 {[%clk 0:00:04.9]} 61. f4 {[%clk 0:00:03]} 61...
Kg4 {[%clk 0:00:04.7]} 62. f5 {[%clk 0:00:03.2]} 62... Nf3 {[%clk 0:00:03.6]}
63. Be7 {[%clk 0:00:01.8]} 63... h3 {[%clk 0:00:03.3]} 64. Bd6 {[%clk
0:00:00.8]} 64... Ng5+ {[%clk 0:00:03]} 0-1

[Event "*** SCC Grand Prix: Titled Tuesday Blitz"]
[Site "Chess.com"]
[Date "2020.10.06"]
[Round "4"]
[White "penguingm1"]
[Black "chessfrendz"]
[Result "1-0"]
[WhiteElo "2842"]
[BlackElo "2378"]
[TimeControl "180+1"]
[EndTime "10:40:23 PDT"]
[Termination "penguingm1 won on time"]

1. d4 {[%clk 0:03:00.9]} 1... d5 {[%clk 0:02:57.1]} 2. Bf4 {[%clk 0:03:00.8]}
2... Nf6 {[%clk 0:02:55.9]} 3. e3 {[%clk 0:03:01.1]} 3... e6 {[%clk 0:02:52.2]}
4. Nf3 {[%clk 0:03:00]} 4... Bd6 {[%clk 0:02:47.8]} 5. Nbd2 {[%clk 0:02:49.7]}
5... O-O {[%clk 0:02:44.8]} 6. Bd3 {[%clk 0:02:49.2]} 6... Bxf4 {[%clk
0:02:40.4]} 7. exf4 {[%clk 0:02:49.4]} 7... Nc6 {[%clk 0:02:38]} 8. c3 {[%clk
0:02:49.5]} 8... Ne7 {[%clk 0:02:34.7]} 9. O-O {[%clk 0:02:48]} 9... c5 {[%clk
0:02:30.6]} 10. dxc5 {[%clk 0:02:47.8]} 10... Qc7 {[%clk 0:02:29.8]} 11. g3
{[%clk 0:02:38.9]} 11... Qxc5 {[%clk 0:02:29]} 12. Nb3 {[%clk 0:02:39.1]} 12...
Qc7 {[%clk 0:02:24.5]} 13. Qe2 {[%clk 0:02:38.4]} 13... Rd8 {[%clk 0:02:21.1]}
14. Rad1 {[%clk 0:02:36.3]} 14... Bd7 {[%clk 0:02:18.9]} 15. Rfe1 {[%clk
0:02:35.8]} 15... Ba4 {[%clk 0:02:16.2]} 16. Rd2 {[%clk 0:02:33]} 16... Bxb3
{[%clk 0:02:15.5]} 17. axb3 {[%clk 0:02:33.9]} 17... Nc6 {[%clk 0:02:13.9]} 18.
Bc2 {[%clk 0:02:22.6]} 18... h6 {[%clk 0:01:59.9]} 19. Kg2 {[%clk 0:02:19.9]}
19... Qb6 {[%clk 0:01:55.1]} 20. Red1 {[%clk 0:02:07.2]} 20... Rac8 {[%clk
0:01:45.8]} 21. Ne5 {[%clk 0:02:05.5]} 21... d4 {[%clk 0:00:56.4]} 22. Nxc6
{[%clk 0:02:01.2]} 22... Qxc6+ {[%clk 0:00:52.3]} 23. Qf3 {[%clk 0:01:58.2]}
23... Qxf3+ {[%clk 0:00:43.5]} 24. Kxf3 {[%clk 0:01:59.1]} 24... Rd5 {[%clk
0:00:42.4]} 25. Rxd4 {[%clk 0:01:58.8]} 25... Rxd4 {[%clk 0:00:35.5]} 26. Rxd4
{[%clk 0:01:59.7]} 26... Kf8 {[%clk 0:00:32.1]} 27. Be4 {[%clk 0:01:59.7]} 27...
b6 {[%clk 0:00:31]} 28. b4 {[%clk 0:01:47.2]} 28... Ke7 {[%clk 0:00:30.3]} 29.
Bb7 {[%clk 0:01:41.5]} 29... Rd8 {[%clk 0:00:29.3]} 30. Rxd8 {[%clk 0:01:36.7]}
30... Kxd8 {[%clk 0:00:29.3]} 31. Ke3 {[%clk 0:01:37.4]} 31... Kc7 {[%clk
0:00:29.2]} 32. Bf3 {[%clk 0:01:36.6]} 32... Kd6 {[%clk 0:00:29.2]} 33. Kd4
{[%clk 0:01:32]} 33... Ne8 {[%clk 0:00:29.1]} 34. c4 {[%clk 0:01:31.2]} 34...
Nc7 {[%clk 0:00:27]} 35. c5+ {[%clk 0:01:31.5]} 35... Ke7 {[%clk 0:00:24.8]} 36.
Bc6 {[%clk 0:01:27.4]} 36... f6 {[%clk 0:00:23.6]} 37. Kc4 {[%clk 0:01:18.6]}
37... Kf7 {[%clk 0:00:23.1]} 38. Be4 {[%clk 0:01:11.3]} 38... Ke7 {[%clk
0:00:22.9]} 39. f5 {[%clk 0:01:03.8]} 39... e5 {[%clk 0:00:22]} 40. Bb7 {[%clk
0:01:04]} 40... Kd7 {[%clk 0:00:21.3]} 41. Kd3 {[%clk 0:01:03.5]} 41... Ke7
{[%clk 0:00:21.2]} 42. Ke4 {[%clk 0:01:03.5]} 42... Kd7 {[%clk 0:00:21]} 43. f4
{[%clk 0:01:01.4]} 43... exf4 {[%clk 0:00:21.1]} 44. Kxf4 {[%clk 0:01:01]} 44...
Ke7 {[%clk 0:00:21.6]} 45. Kg4 {[%clk 0:00:49.4]} 45... Kf7 {[%clk 0:00:20.4]}
46. Kh5 {[%clk 0:00:49.4]} 46... Kf8 {[%clk 0:00:19.8]} 47. Kg6 {[%clk
0:00:49.3]} 47... Kg8 {[%clk 0:00:19.6]} 48. h4 {[%clk 0:00:48.1]} 48... Kf8
{[%clk 0:00:19.1]} 49. Kh7 {[%clk 0:00:48.2]} 49... Kf7 {[%clk 0:00:19.1]} 50.
Bc8 {[%clk 0:00:40.4]} 50... Kf8 {[%clk 0:00:19]} 51. Be6 {[%clk 0:00:40.1]}
51... Na6 {[%clk 0:00:17.2]} 52. c6 {[%clk 0:00:38]} 52... Nc7 {[%clk
0:00:16.7]} 53. Bc4 {[%clk 0:00:38]} 53... Ne8 {[%clk 0:00:13.5]} 54. g4 {[%clk
0:00:31.8]} 54... Nc7 {[%clk 0:00:13.2]} 55. Be6 {[%clk 0:00:16.6]} 55... Nb5
{[%clk 0:00:11.4]} 56. Kg6 {[%clk 0:00:13.7]} 56... Nc7 {[%clk 0:00:10.6]} 57.
g5 {[%clk 0:00:13.3]} 57... hxg5 {[%clk 0:00:09.4]} 58. hxg5 {[%clk 0:00:13.6]}
58... fxg5 {[%clk 0:00:09.3]} 59. Kxg5 {[%clk 0:00:14.5]} 59... Ke7 {[%clk
0:00:08.8]} 60. Kg6 {[%clk 0:00:14.1]} 60... Kf8 {[%clk 0:00:06.7]} 61. Bc4
{[%clk 0:00:09.6]} 61... Ne8 {[%clk 0:00:05.3]} 62. Bf7 {[%clk 0:00:08.9]} 62...
Nc7 {[%clk 0:00:04.4]} 63. f6 {[%clk 0:00:09.4]} 63... gxf6 {[%clk 0:00:03.5]}
64. Kxf6 {[%clk 0:00:10.3]} 64... Na6 {[%clk 0:00:02.3]} 65. Ke6 {[%clk
0:00:05.1]} 65... Nc7+ {[%clk 0:00:01.7]} 66. Kd7 {[%clk 0:00:05]} 66... Nb5
{[%clk 0:00:01.6]} 67. Bc4 {[%clk 0:00:04.8]} 67... Nd4 {[%clk 0:00:01.1]} 68.
c7 {[%clk 0:00:05]} 1-0

[Event "*** SCC Grand Prix: Titled Tuesday Blitz"]
[Site "Chess.com"]
[Date "2020.10.06"]
[Round "4"]
[White "bocah_sakit"]
[Black "Kavyev_Ruslan"]
[Result "1/2-1/2"]
[WhiteElo "2828"]
[BlackElo "2592"]
[TimeControl "180+1"]
[EndTime "10:40:28 PDT"]
[Termination "Game drawn by repetition"]

1. e4 {[%clk 0:03:00.9]} 1... c5 {[%clk 0:02:59.7]} 2. Nf3 {[%clk 0:03:01.1]}
2... d6 {[%clk 0:03:00]} 3. d4 {[%clk 0:03:00.8]} 3... cxd4 {[%clk 0:03:00.9]}
4. Nxd4 {[%clk 0:03:01.7]} 4... Nf6 {[%clk 0:03:01.5]} 5. Nc3 {[%clk 0:03:02.3]}
5... a6 {[%clk 0:03:01.3]} 6. Bg5 {[%clk 0:03:02.9]} 6... Nbd7 {[%clk
0:03:01.1]} 7. f4 {[%clk 0:03:02.9]} 7... Qc7 {[%clk 0:03:00.8]} 8. Qf3 {[%clk
0:03:02.2]} 8... h6 {[%clk 0:02:58.7]} 9. Bxf6 {[%clk 0:02:59.3]} 9... Nxf6
{[%clk 0:02:53.2]} 10. f5 {[%clk 0:03:00.2]} 10... Qc5 {[%clk 0:02:30.5]} 11.
O-O-O {[%clk 0:03:00.4]} 11... g5 {[%clk 0:02:30.5]} 12. fxg6 {[%clk 0:02:59.9]}
12... Bg4 {[%clk 0:02:29.8]} 13. gxf7+ {[%clk 0:03:00.8]} 13... Kxf7 {[%clk
0:02:29.9]} 14. Qd3 {[%clk 0:02:59.1]} 14... Bxd1 {[%clk 0:02:30.2]} 15. Nxd1
{[%clk 0:03:00]} 15... Bg7 {[%clk 0:02:30]} 16. Qb3+ {[%clk 0:02:58.5]} 16... d5
{[%clk 0:02:27]} 17. Nf5 {[%clk 0:02:56.4]} 17... Nxe4 {[%clk 0:02:20.8]} 18.
Bd3 {[%clk 0:02:56.4]} 18... Nf6 {[%clk 0:02:10.3]} 19. Rf1 {[%clk 0:02:51.1]}
19... b5 {[%clk 0:02:03.6]} 20. g4 {[%clk 0:02:39.7]} 20... e6 {[%clk
0:01:57.5]} 21. Nh4 {[%clk 0:02:39.5]} 21... Rhf8 {[%clk 0:01:50]} 22. Ng6
{[%clk 0:02:36]} 22... Rfc8 {[%clk 0:01:45.7]} 23. h4 {[%clk 0:02:32]} 23... Kg8
{[%clk 0:01:43.3]} 24. g5 {[%clk 0:02:24.9]} 24... Ne4 {[%clk 0:01:16]} 25. Bxe4
{[%clk 0:01:53.3]} 25... dxe4 {[%clk 0:01:16.9]} 26. Qxe6+ {[%clk 0:01:53.7]}
26... Kh7 {[%clk 0:01:15.3]} 27. Qxe4 {[%clk 0:01:53.1]} 27... Qxc2+ {[%clk
0:00:59.8]} 28. Qxc2 {[%clk 0:01:50.1]} 28... Rxc2+ {[%clk 0:01:00.7]} 29. Kxc2
{[%clk 0:01:51]} 29... Kxg6 {[%clk 0:01:01.4]} 30. gxh6 {[%clk 0:01:45.1]} 30...
Kxh6 {[%clk 0:00:59.4]} 31. Ne3 {[%clk 0:01:39.4]} 31... Kh5 {[%clk 0:00:52.8]}
32. Nf5 {[%clk 0:01:09]} 32... Bf6 {[%clk 0:00:43.3]} 33. Ng3+ {[%clk
0:01:01.3]} 33... Kg6 {[%clk 0:00:43.7]} 34. h5+ {[%clk 0:01:01.3]} 34... Kg7
{[%clk 0:00:40.8]} 35. Nf5+ {[%clk 0:00:53.7]} 35... Kh7 {[%clk 0:00:39.2]} 36.
Rd1 {[%clk 0:00:54.2]} 36... Re8 {[%clk 0:00:34.5]} 37. Rd7+ {[%clk 0:00:50]}
37... Kh8 {[%clk 0:00:34.7]} 38. Rd6 {[%clk 0:00:44]} 38... Be5 {[%clk
0:00:22.2]} 39. Rxa6 {[%clk 0:00:42.8]} 39... Rf8 {[%clk 0:00:22.6]} 40. Rh6+
{[%clk 0:00:26]} 40... Kg8 {[%clk 0:00:22.8]} 41. Ne7+ {[%clk 0:00:25.2]} 41...
Kg7 {[%clk 0:00:23.5]} 42. Rg6+ {[%clk 0:00:25.3]} 42... Kh7 {[%clk 0:00:24.2]}
43. Rg2 {[%clk 0:00:18.8]} 43... Rf3 {[%clk 0:00:16.9]} 44. Nd5 {[%clk
0:00:17.2]} 44... Rh3 {[%clk 0:00:16.4]} 45. Re2 {[%clk 0:00:17.7]} 45... Rxh5
{[%clk 0:00:16.2]} 46. Ne7 {[%clk 0:00:12]} 46... Kg7 {[%clk 0:00:14.9]} 47. Kb3
{[%clk 0:00:12.1]} 47... Kf6 {[%clk 0:00:14.4]} 48. Nc6 {[%clk 0:00:12.8]} 48...
Bd6 {[%clk 0:00:12.7]} 49. Nd4 {[%clk 0:00:13.4]} 49... Rd5 {[%clk 0:00:10]} 50.
Re4 {[%clk 0:00:07.6]} 50... Be5 {[%clk 0:00:09.1]} 51. Nc6 {[%clk 0:00:05.2]}
51... Bd6 {[%clk 0:00:07.6]} 52. a3 {[%clk 0:00:05.3]} 52... Rd3+ {[%clk
0:00:06.5]} 53. Kc2 {[%clk 0:00:05.8]} 53... Rd5 {[%clk 0:00:06.3]} 54. Nd4
{[%clk 0:00:05.9]} 54... Be5 {[%clk 0:00:06.4]} 55. Nf3 {[%clk 0:00:06.1]} 55...
Bd6 {[%clk 0:00:06.7]} 56. Rd4 {[%clk 0:00:06.6]} 56... Ke6 {[%clk 0:00:03.1]}
57. Kd3 {[%clk 0:00:03.9]} 57... Bc5 {[%clk 0:00:02.7]} 58. Rxd5 {[%clk
0:00:04.4]} 58... Kxd5 {[%clk 0:00:03.6]} 59. b4 {[%clk 0:00:04.6]} 59... Bb6
{[%clk 0:00:03.5]} 60. Nd2 {[%clk 0:00:04.2]} 60... Bc7 {[%clk 0:00:03.8]} 61.
Ne4 {[%clk 0:00:04.2]} 61... Bf4 {[%clk 0:00:04.2]} 62. Nc3+ {[%clk 0:00:04.5]}
62... Kc6 {[%clk 0:00:04.8]} 63. Ne2 {[%clk 0:00:04.2]} 63... Be5 {[%clk
0:00:04.7]} 64. Nd4+ {[%clk 0:00:04.5]} 64... Bxd4 {[%clk 0:00:02.4]} 65. Kxd4
{[%clk 0:00:05.4]} 65... Kd6 {[%clk 0:00:03.3]} 66. Ke4 {[%clk 0:00:05.2]} 66...
Ke6 {[%clk 0:00:03.8]} 67. Kd4 {[%clk 0:00:04.9]} 67... Kd6 {[%clk 0:00:04.4]}
68. Ke4 {[%clk 0:00:04.9]} 68... Ke6 {[%clk 0:00:04.9]} 69. Kd4 {[%clk 0:00:03]}
69... Kd6 {[%clk 0:00:05.4]} 1/2-1/2